fUSD/lending_fUSD_20250514
["ID","MTS","AMOUNT","RATE_DAILY","PERIOD"]
[361008993,1747200640163,-400.0,0.00010958,2]
[361008994,1747200640172,-400.0,0.00010958,2]
[361008995,1747200640181,-2042.03982629,0.00010958,2]
[361008996,1747200640190,-404.39994268,0.00010958,2]
[361008997,1747200640199,-403.59,0.00010958,2]
[361008998,1747200640209,-400.0,0.00010958,2]
[361008999,1747200640218,-400.0,0.00010958,2]
[361009000,1747200640227,-400.0,0.00010958,2]
[361009001,1747200640237,-400.0,0.00010958,2]
[361009002,1747200640247,-402.94204606,0.00010958,2]
[361009003,1747200640256,-722.5,0.00010958,2]
[361009004,1747200640266,-400.0,0.00010958,2]
[361009005,1747200640275,-814.7,0.00010958,2]
[361009006,1747200640284,-400.0,0.00010958,2]
[361009007,1747200640294,-400.0,0.00010958,2]
[361009008,1747200640303,-552.88,0.00010958,2]
[361009009,1747200640312,-400.0,0.00010958,2]
[361009010,1747200640321,-635.39,0.00010958,2]
[361009011,1747200640330,-400.0,0.00010958,2]
[361009012,1747200640339,-888.48,0.00010958,2]
[361009013,1747200640349,-400.0,0.00010958,2]
[361009014,1747200640358,-400.0,0.00010958,2]
[361009015,1747200640367,-400.0,0.00010958,2]
[361009016,1747200640376,-400.0,0.00010958,2]
[361009017,1747200640387,-400.0,0.00010958,2]
[361009018,1747200640396,-618.46,0.00010958,2]
[361009019,1747200640405,-705.01,0.00010958,2]
[361009020,1747200640415,-400.0,0.00010958,2]
[361009021,1747200640424,-588.86,0.00010958,2]
[361009022,1747200640433,-870.77,0.00010958,2]
[361009023,1747200640442,-1562.05,0.00010958,2]
[361009024,1747200640451,-400.0,0.00010958,2]
[361009025,1747200640460,-400.0,0.00010958,2]
[361009026,1747200640470,-582.35,0.00010958,2]
[361009027,1747200640479,-400.0,0.00010958,2]
[361009028,1747200640488,-400.0,0.00010958,2]
[361009029,1747200640498,-400.0,0.00010958,2]
[361009030,1747200640507,-400.0,0.00010958,2]
[361009031,1747200640516,-400.0,0.00010958,2]
[361009032,1747200640526,-400.0,0.00010958,2]
[361009033,1747200640535,-1350.26,0.00010958,2]
[361009034,1747200640544,-400.0,0.00010958,2]
[361009035,1747200640553,-421.2,0.00010958,2]
[361009036,1747200640562,-400.0,0.00010958,2]
[361009037,1747200640572,-400.0,0.00010958,2]
[361009038,1747200640581,-400.0,0.00010958,2]
[361009039,1747200640590,-754.05,0.00010958,2]
[361009040,1747200640599,-400.0,0.00010958,2]
[361009041,1747200640608,-621.73,0.00010958,2]
[361009042,1747200640617,-1300.36,0.00010958,2]
[361009043,1747200640626,-400.0,0.00010958,2]
[361009044,1747200640636,-400.0,0.00010958,2]
[361009045,1747200640645,-400.0,0.00010958,2]
[361009046,1747200640655,-400.0,0.00010958,2]
[361009047,1747200640664,-1346.48,0.00010958,2]
[361009048,1747200640674,-400.0,0.00010958,2]
[361009049,1747200640683,-400.0,0.00010958,2]
[361009050,1747200640693,-400.0,0.00010958,2]
[361009051,1747200640702,-1504.3,0.00010958,2]
[361009052,1747200640712,-400.0,0.00010958,2]
[361009053,1747200640722,-519.4,0.00010958,2]
[361009054,1747200640732,-400.0,0.00010958,2]
[361009055,1747200640741,-804.11,0.00010958,2]
[361009056,1747200640750,-400.0,0.00010958,2]
[361009057,1747200640760,-507.43,0.00010958,2]
[361009058,1747200640769,-400.0,0.00010958,2]
[361009059,1747200640778,-889.15,0.00010958,2]
[361009060,1747200640787,-400.0,0.00010958,2]
[361009061,1747200640798,-400.0,0.00010958,2]
[361009062,1747200640807,-400.0,0.00010958,2]
[361009063,1747200640816,-1038.63,0.00010958,2]
[361009064,1747200640826,-400.0,0.00010958,2]
[361009065,1747200640835,-400.0,0.00010958,2]
[361009066,1747200640844,-400.0,0.00010958,2]
[361009067,1747200640854,-1514.2,0.00010958,2]
[361009068,1747200640862,-400.0,0.00010958,2]
[361009069,1747200640871,-400.0,0.00010958,2]
[361009070,1747200640880,-400.0,0.00010958,2]
[361009071,1747200640889,-526.28695349,0.00010958,2]
[361009072,1747200640898,-917.53,0.00010958,2]
[361009073,1747200640907,-759.52,0.00010958,2]
[361009074,1747200640916,-435.45,0.00010958,2]
[361009075,1747200640925,-400.0,0.00010958,2]
[361009076,1747200640934,-547.79,0.00010958,2]
[361009077,1747200640943,-1339.62,0.00010958,2]
[361009078,1747200640952,-597.17,0.00010958,2]
[361009079,1747200640961,-400.0,0.00010958,2]
[361009080,1747200640971,-508.02775508,0.00010958,2]
[361009081,1747200640984,-1747.3,0.00010958,2]
[361009082,1747200640993,-400.0,0.00010958,2]
[361009083,1747200641002,-1428.6,0.00010958,2]
[361009084,1747200641011,-466.53,0.00010958,2]
[361009085,1747200641022,-2601.55,0.00010958,2]
[361009086,1747200641035,-400.0,0.00010958,2]
[361009087,1747200641045,-172.45265597,0.00010958,2]
[361009088,1747200641057,-291.48423579,0.00010958,2]
[361009089,1747200641067,-400.0,0.00010958,2]
[361009090,1747200641076,-400.0,0.00010958,2]
[361009091,1747200641085,-400.0,0.00010958,2]
[361009092,1747200641095,-400.0,0.00010958,2]
[361009093,1747200641104,-550.67,0.00010958,2]
[361009094,1747200641114,-1165.09,0.00010958,2]
[361009095,1747200641123,-428.73,0.00010958,2]
[361009096,1747200641133,-400.0,0.00010958,2]
[361009097,1747200641143,-400.0,0.00010958,2]
[361009098,1747200641152,-400.0,0.00010958,2]
[361009099,1747200641161,-400.0,0.00010958,2]
[361009100,1747200641171,-895.61,0.00010958,2]
[361009101,1747200641180,-1791.25,0.00010958,2]
[361009102,1747200641190,-400.0,0.00010958,2]
[361009103,1747200641199,-400.0,0.00010958,2]
[361009104,1747200641208,-1008.32,0.00010958,2]
[361009105,1747200641218,-400.0,0.00010958,2]
[361009106,1747200641227,-675.79,0.00010958,2]
[361009107,1747200641236,-400.0,0.00010958,2]
[361009108,1747200641246,-880.23,0.00010958,2]
[361009109,1747200641255,-400.0,0.00010958,2]
[361009110,1747200641265,-738.04,0.00010958,2]
[361009111,1747200641275,-400.0,0.00010958,2]
[361009112,1747200641284,-401.79484809,0.00010958,2]
[361009113,1747200641295,-400.0,0.00010958,2]
[361009114,1747200641305,-454.78,0.00010958,2]
[361009115,1747200641315,-1023.75,0.00010958,2]
[361009116,1747200641325,-415.99008893,0.00010958,2]
[361009117,1747200641334,-503.99,0.00010958,2]
[361009118,1747200641344,-400.0,0.00010958,2]
[361009119,1747200641353,-400.0,0.00010958,2]
[361009120,1747200641363,-400.0,0.00010958,2]
[361009121,1747200641373,-400.0,0.00010958,2]
[361009122,1747200641383,-2932.87,0.00010958,2]
[361009123,1747200641395,-1840.56,0.00010958,2]
[361009124,1747200641404,-400.0,0.00010958,2]
[361009125,1747200641414,-495.03,0.00010958,2]
[361009126,1747200641425,-400.0,0.00010958,2]
[361009127,1747200641436,-400.0,0.00010958,2]
[361009128,1747200641446,-400.0,0.00010958,2]
[361009129,1747200641457,-400.0,0.00010958,2]
[361009130,1747200641468,-4546.21,0.00010958,2]
[361009131,1747200641477,-400.0,0.00010958,2]
[361009132,1747200641487,-400.0,0.00010958,2]
[361009133,1747200641496,-416.49818591,0.00010958,2]
[361009134,1747200641506,-400.0,0.00010958,2]
[361009135,1747200641515,-400.0,0.00010958,2]
[361009136,1747200641524,-1515.46,0.00010958,2]
[361009137,1747200641533,-700.21,0.00010958,2]
[361009138,1747200641544,-400.0,0.00010958,2]
[361009139,1747200641553,-400.0,0.00010958,2]
[361009140,1747200641563,-530.98,0.00010958,2]
[361009141,1747200641573,-400.0,0.00010958,2]
[361009142,1747200641582,-400.0,0.00010958,2]
[361009143,1747200641592,-400.0,0.00010958,2]
[361009144,1747200641601,-400.0,0.00010958,2]
[361009145,1747200641611,-400.0,0.00010958,2]
[361009146,1747200641620,-500.0,0.00010958,2]
[361009147,1747200641630,-9827.97,0.00010958,2]
[361009148,1747200641639,-758.5,0.00010958,2]
[361009149,1747200641649,-1000.0,0.00010958,2]
[361009150,1747200641659,-495.87,0.00010958,2]
[361009151,1747200641669,-1276.04,0.00010958,2]
[361009152,1747200641679,-400.0,0.00010958,2]
[361009153,1747200641688,-1106.55,0.00010958,2]
[361009154,1747200641698,-3765.43,0.00010958,2]
[361009155,1747200641708,-4861.1,0.00010958,2]
[361009156,1747200641717,-1226.64,0.00010958,2]
[361009157,1747200641727,-400.0,0.00010958,2]
[361009158,1747200641737,-1260.85,0.00010958,2]
[361009159,1747200641749,-400.0,0.00010958,2]
[361009160,1747200641759,-977.87,0.00010958,2]
[361009161,1747200641770,-735.79,0.00010958,2]
[361009162,1747200641782,-400.0,0.00010958,2]
[361009163,1747200641792,-10077.55,0.00010958,2]
[361009164,1747200641802,-3774.37,0.00010958,2]
[361009165,1747200641812,-806.97,0.00010958,2]
[361009166,1747200641823,-1112.2,0.00010958,2]
[361009167,1747200641833,-972.12,0.00010958,2]
[361009168,1747200641843,-400.0,0.00010958,2]
[361009169,1747200641854,-426.75,0.00010958,2]
[361009170,1747200641865,-400.0,0.00010958,2]
[361009171,1747200641876,-1273.56,0.00010958,2]
[361009172,1747200641886,-400.0,0.00010958,2]
[361009173,1747200641895,-400.0,0.00010958,2]
[361009174,1747200641905,-413.14,0.00010958,2]
[361009175,1747200641915,-400.0,0.00010958,2]
[361009176,1747200641925,-400.0,0.00010958,2]
[361009177,1747200641935,-2036.62,0.00010958,2]
[361009178,1747200642097,-481.07,0.00010958,2]
[361009179,1747200642107,-400.0,0.00010958,2]
[361009180,1747200642117,-400.0,0.00010958,2]
[361009181,1747200642126,-1672.9,0.00010958,2]
[361009182,1747200642136,-413.85204187,0.00010958,2]
[361009183,1747200642145,-458.47,0.00010958,2]
[361009184,1747200642155,-567.5,0.00010958,2]
[361009185,1747200642165,-400.0,0.00010958,2]
[361009186,1747200642175,-1215.75,0.00010958,2]
[361009187,1747200642186,-637.25,0.00010958,2]
[361009188,1747200642195,-1101.62,0.00010958,2]
[361009189,1747200642206,-982.72,0.00010958,2]
[361009190,1747200642217,-400.0,0.00010958,2]
[361009191,1747200642226,-1065.18,0.00010958,2]
[361009192,1747200642236,-400.0,0.00010958,2]
[361009193,1747200642245,-632.08,0.00010958,2]
[361009194,1747200642256,-441.07,0.00010958,2]
[361009195,1747200642265,-762.89,0.00010958,2]
[361009196,1747200642277,-502.99,0.00010958,2]
[361009197,1747200642287,-5116.21,0.00010958,2]
[361009198,1747200642297,-1522.77,0.00010958,2]
[361009199,1747200642306,-400.0,0.00010958,2]
[361009200,1747200642317,-1344.31,0.00010958,2]
[361009201,1747200642326,-743.3,0.00010958,2]
[361009202,1747200642337,-635.02,0.00010958,2]
[361009203,1747200642347,-993.86,0.00010958,2]
[361009204,1747200642358,-719.55,0.00010958,2]
[361009205,1747200642367,-400.0,0.00010958,2]
[361009206,1747200642377,-358.0,0.00010958,2]
[361009207,1747200642386,-400.0,0.00010958,2]
[361009208,1747200642397,-1626.67,0.00010958,2]
[361009209,1747200642407,-400.0,0.00010958,2]
[361009210,1747200642417,-667.44,0.00010958,2]
[361009211,1747200642428,-397.51213601,0.00010958,2]
[361009212,1747200642439,-400.0,0.00010958,2]
[361009213,1747200642449,-404.94,0.00010958,2]
[361009214,1747200642459,-709.83,0.00010958,2]
[361009215,1747200642469,-400.0,0.00010958,2]
[361009216,1747200642478,-400.0,0.00010958,2]
[361009217,1747200642488,-400.0,0.00010958,2]
[361009218,1747200642499,-400.0,0.00010958,2]
[361009219,1747200642509,-440.25,0.00010958,2]
[361009220,1747200642519,-400.0,0.00010958,2]
[361009221,1747200642530,-400.0,0.00010958,2]
[361009222,1747200642540,-719.83,0.00010958,2]
[361009223,1747200642550,-821.99,0.00010958,2]
[361009224,1747200642560,-400.0,0.00010958,2]
[361009225,1747200642570,-639.88,0.00010958,2]
[361009226,1747200642579,-400.0,0.00010958,2]
[361009227,1747200642589,-400.0,0.00010958,2]
[361009228,1747200642599,-400.0,0.00010958,2]
[361009229,1747200642608,-2122.28,0.00010958,2]
[361009230,1747200642619,-400.0,0.00010958,2]
[361009231,1747200642629,-400.0,0.00010958,2]
[361009232,1747200642639,-443.54,0.00010958,2]
[361009233,1747200642649,-400.0,0.00010958,2]
[361009234,1747200642659,-1301.38,0.00010958,2]
[361009235,1747200642668,-771.15,0.00010958,2]
[361009236,1747200642679,-1577.66,0.00010958,2]
[361009237,1747200642688,-592.87,0.00010958,2]
[361009238,1747200642698,-400.0,0.00010958,2]
[361009239,1747200642707,-528.55,0.00010958,2]
[361009240,1747200642717,-400.0,0.00010958,2]
[361009241,1747200642726,-400.0,0.00010958,2]
[361009242,1747200642735,-626.62,0.00010958,2]
[361009243,1747200642745,-401.13736521,0.00010958,2]
[361009244,1747200642755,-787.66,0.00010958,2]
[361009245,1747200642765,-4417.9,0.00010958,2]
[361009246,1747200642775,-646.04,0.00010958,2]
[361009247,1747200642784,-1211.32,0.00010958,2]
[361009248,1747200642794,-400.0,0.00010958,2]
[361009249,1747200642803,-400.0,0.00010958,2]
[361009250,1747200642813,-1815.34,0.00010958,2]
[361009251,1747200642822,-400.0,0.00010958,2]
[361009252,1747200642832,-400.0,0.00010958,2]
[361009253,1747200642841,-400.0,0.00010958,2]
[361009254,1747200642851,-519.39,0.00010958,2]
[361009255,1747200642860,-2020.76,0.00010958,2]
[361009256,1747200642870,-514.58,0.00010958,2]
[361009257,1747200642879,-400.0,0.00010958,2]
[361009258,1747200642889,-154.08842127,0.00010958,2]
[361009259,1747200642898,-556.68,0.00010958,2]
[361009260,1747200642907,-400.0,0.00010958,2]
[361009261,1747200642917,-400.0,0.00010958,2]
[361009262,1747200642927,-400.0,0.00010958,2]
[361009263,1747200642936,-1494.85,0.00010958,2]
[361009264,1747200642945,-713.28,0.00010958,2]
[361009265,1747200642954,-678.35,0.00010958,2]
[361009266,1747200642964,-1047.49,0.00010958,2]
[361009267,1747200642975,-400.0,0.00010958,2]
[361009268,1747200642986,-451.63,0.00010958,2]
[361009269,1747200642996,-400.0,0.00010958,2]
[361009270,1747200643005,-616.17,0.00010958,2]
[361009271,1747200643014,-400.0,0.00010958,2]
[361009272,1747200643025,-400.0,0.00010958,2]
[361009273,1747200643035,-400.0,0.00010958,2]
[361009274,1747200643045,-908.84,0.00010958,2]
[361009275,1747200643054,-400.0,0.00010958,2]
[361009276,1747200643064,-400.0,0.00010958,2]
[361009277,1747200643073,-1019.62,0.00010958,2]
[361009278,1747200643082,-400.0,0.00010958,2]
[361009279,1747200643091,-546.73,0.00010958,2]
[361009280,1747200643101,-1577.89,0.00010958,2]
[361009281,1747200643111,-400.0,0.00010958,2]
[361009282,1747200643120,-400.0,0.00010958,2]
[361009283,1747200643130,-400.78648338,0.00010958,2]
[361009284,1747200643139,-400.0,0.00010958,2]
[361009285,1747200643149,-400.0,0.00010958,2]
[361009286,1747200643159,-1099.63,0.00010958,2]
[361009287,1747200643168,-400.0,0.00010958,2]
[361009288,1747200643178,-662.19,0.00010958,2]
[361009289,1747200643187,-400.0,0.00010958,2]
[361009290,1747200643197,-730.44,0.00010958,2]
[361009291,1747200643207,-400.0,0.00010958,2]
[361009292,1747200643216,-400.0,0.00010958,2]
[361009293,1747200643226,-400.0,0.00010958,2]
[361009294,1747200643235,-532.34,0.00010958,2]
[361009295,1747200643245,-400.0,0.00010958,2]
[361009296,1747200643254,-1273.06,0.00010958,2]
[361009298,1747200643263,-1321.8,0.00010958,2]
[361009300,1747200643272,-400.0,0.00010958,2]
[361009302,1747200643282,-400.0,0.00010958,2]
[361009304,1747200643291,-400.0,0.00010958,2]
[361009306,1747200643301,-320.11194565,0.00010958,2]
[361009308,1747200643310,-456.35,0.00010958,2]
[361009310,1747200643320,-461.75,0.00010958,2]
[361009312,1747200643329,-400.0,0.00010958,2]
[361009314,1747200643341,-1557.04,0.00010958,2]
[361009316,1747200643351,-400.0,0.00010958,2]
[361009318,1747200643360,-400.0,0.00010958,2]
[361009320,1747200643369,-561.25,0.00010958,2]
[361009322,1747200643378,-500.0,0.00010958,2]
[361009324,1747200643387,-400.0,0.00010958,2]
[361009326,1747200643396,-545.38,0.00010958,2]
[361009329,1747200643406,-314.71279589,0.00010958,2]
[361009332,1747200643415,-423.12822437,0.00010958,2]
[361009335,1747200643424,-400.0,0.00010958,2]
[361009338,1747200643433,-457.93878387,0.00010958,2]
[361009341,1747200643442,-400.0,0.00010958,2]
[361009343,1747200643451,-549.27,0.00010958,2]
[361009344,1747200643460,-400.0,0.00010958,2]
[361009345,1747200643469,-4446.15,0.00010958,2]
[361009346,1747200643478,-400.0,0.00010958,2]
[361009347,1747200643489,-400.0,0.00010958,2]
[361009348,1747200643499,-400.0,0.00010958,2]
[361009349,1747200643508,-400.0,0.00010958,2]
[361009350,1747200643518,-400.0,0.00010958,2]
[361009351,1747200643528,-413.24795056,0.00010958,2]
[361009352,1747200643537,-820.9,0.00010958,2]
[361009353,1747200643547,-469.58,0.00010958,2]
[361009354,1747200643556,-4820.29,0.00010958,2]
[361009355,1747200643565,-400.0,0.00010958,2]
[361009356,1747200643575,-429.71419599,0.00010958,2]
[361009357,1747200643585,-650.68,0.00010958,2]
[361009358,1747200643594,-1521.98,0.00010958,2]
[361009359,1747200643603,-400.0,0.00010958,2]
[361009360,1747200643613,-400.0,0.00010958,2]
[361009361,1747200643623,-1991.94,0.00010958,2]
[361009362,1747200643632,-1026.56,0.00010958,2]
[361009363,1747200643641,-728.55,0.00010958,2]
[361009364,1747200643650,-764.24,0.00010958,2]
[361009365,1747200643660,-702.28,0.00010958,2]
[361009366,1747200643670,-402.42367868,0.00010958,2]
[361009367,1747200643679,-400.0,0.00010958,2]
[361009368,1747200643688,-400.0,0.00010958,2]
[361009369,1747200643698,-400.97136115,0.00010958,2]
[361009370,1747200643708,-400.0,0.00010958,2]
[361009371,1747200643717,-5217.72,0.00010958,2]
[361009372,1747200643727,-402.38568433,0.00010958,2]
[361009373,1747200643736,-400.0,0.00010958,2]
[361009374,1747200643746,-911.92,0.00010958,2]
[361009375,1747200643756,-627.72,0.00010958,2]
[361009376,1747200643765,-2201.62,0.00010958,2]
[361009377,1747200643776,-401.49839518,0.00010958,2]
[361009378,1747200643787,-400.0,0.00010958,2]
[361009379,1747200643797,-400.0,0.00010958,2]
[361009380,1747200643807,-425.84809568,0.00010958,2]
[361009381,1747200643817,-400.0,0.00010958,2]
[361009382,1747200643828,-1761.05,0.00010958,2]
[361009383,1747200643839,-400.0,0.00010958,2]
[361009384,1747200643850,-2609.11,0.00010958,2]
[361009385,1747200643860,-400.0,0.00010958,2]
[361009386,1747200643869,-628.41,0.00010958,2]
[361009387,1747200643879,-902.77,0.00010958,2]
[361009388,1747200643889,-2110.72,0.00010958,2]
[361009389,1747200643900,-400.0,0.00010958,2]
[361009390,1747200643909,-1540.07,0.00010958,2]
[361009391,1747200643918,-601.17,0.00010958,2]
[361009392,1747200643928,-1531.93,0.00010958,2]
[361009393,1747200643937,-400.0,0.00010958,2]
[361009394,1747200643946,-400.0,0.00010958,2]
[361009395,1747200643956,-437.4919543,0.00010958,2]
[361009396,1747200643966,-400.0,0.00010958,2]
[361009397,1747200643977,-400.0,0.00010958,2]
[361009398,1747200643987,-401.68569894,0.00010958,2]
[361009399,1747200643997,-446.19,0.00010958,2]
[361009400,1747200644007,-400.0,0.00010958,2]
[361009401,1747200644019,-400.0,0.00010958,2]
[361009402,1747200644029,-400.0,0.00010958,2]
[361009403,1747200644039,-400.0,0.00010958,2]
[361009404,1747200644188,-1664.24,0.00010958,2]
[361009405,1747200644198,-695.31,0.00010958,2]
[361009406,1747200644208,-400.0,0.00010958,2]
[361009407,1747200644217,-400.0,0.00010958,2]
[361009408,1747200644226,-400.0,0.00010958,2]
[361009409,1747200644235,-3209.7,0.00010958,2]
[361009410,1747200644244,-413.33,0.00010958,2]
[361009411,1747200644253,-400.0,0.00010958,2]
[361009412,1747200644263,-605.6,0.00010958,2]
[361009413,1747200644272,-400.0,0.00010958,2]
[361009414,1747200644282,-400.0,0.00010958,2]
[361009415,1747200644292,-402.17396013,0.00010958,2]
[361009416,1747200644301,-400.0,0.00010958,2]
[361009417,1747200644311,-400.0,0.00010958,2]
[361009418,1747200644322,-417.3,0.00010958,2]
[361009419,1747200644334,-400.0,0.00010958,2]
[361009420,1747200644343,-400.0,0.00010958,2]
[361009421,1747200644352,-633.34,0.00010958,2]
[361009422,1747200644361,-400.0,0.00010958,2]
[361009423,1747200644372,-400.0,0.00010958,2]
[361009424,1747200644382,-400.0,0.00010958,2]
[361009425,1747200644390,-400.0,0.00010958,2]
[361009426,1747200644399,-400.0,0.00010958,2]
[361009427,1747200644409,-400.0,0.00010958,2]
[361009428,1747200644418,-400.74211053,0.00010958,2]
[361009429,1747200644427,-400.0,0.00010958,2]
[361009430,1747200644435,-400.0,0.00010958,2]
[361009431,1747200644444,-453.88,0.00010958,2]
[361009432,1747200644454,-1220.46,0.00010958,2]
[361009433,1747200644463,-503.26,0.00010958,2]
[361009434,1747200644472,-402.31038493,0.00010958,2]
[361009435,1747200644481,-400.0,0.00010958,2]
[361009436,1747200644491,-500.0,0.00010959,2]
[361009437,1747200644501,-2000.0,0.00010959,2]
[361009438,1747200644511,-500.0,0.00010959,2]
[361009439,1747200644520,-200.0,0.00010959,2]
[361009440,1747200644530,-200.0,0.00010959,2]
[361009441,1747200644539,-2238.0,0.00010959,2]
[361009442,1747200644549,-500.0,0.00010959,2]
[361009443,1747200644559,-500.0,0.00010959,2]
[361009444,1747200644570,-500.0,0.00010959,2]
[361009445,1747200644580,-500.0,0.00010959,2]
[361009446,1747200644590,-500.0,0.00010959,2]
[361009447,1747200644600,-500.0,0.00010959,2]
[361009448,1747200644610,-500.0,0.00010959,2]
[361009449,1747200644619,-500.0,0.00010959,2]
[361009450,1747200644628,-150.0,0.00010959,2]
[361009451,1747200644637,-2537.51,0.00010959,2]
[361009452,1747200644647,-500.0,0.00010959,2]
[361009453,1747200644656,-500.0,0.00010959,2]
[361009454,1747200644666,-500.0,0.00010959,2]
[361009455,1747200644675,-500.0,0.00010959,2]
[361009456,1747200644685,-500.0,0.00010959,2]
[361009457,1747200644695,-500.0,0.00010959,2]
[361009458,1747200644704,-500.0,0.00010959,2]
[361009459,1747200644715,-500.0,0.00010959,2]
[361009460,1747200644724,-500.0,0.00010959,2]
[361009461,1747200644734,-500.0,0.00010959,2]
[361009462,1747200644743,-500.0,0.00010959,2]
[361009463,1747200644753,-500.0,0.00010959,2]
[361009464,1747200644762,-500.0,0.00010959,2]
[361009465,1747200644772,-397.25371356,0.00010959,2]
[361009466,1747200644781,-500.0,0.00010959,2]
[361009467,1747200644791,-483.74764618,0.00010959,2]
[361009468,1747200644801,-500.0,0.00010959,2]
[361009469,1747200644811,-500.0,0.00010959,2]
[361009470,1747200644821,-1875.712,0.00010969,2]
[361009471,1747200644830,-174.782,0.00010969,2]
[361009472,1747200644840,-500.0,0.00010973,2]
[361009473,1747200644849,-500.0,0.00010973,2]
[361009474,1747200644859,-170.3110274,0.00010973,2]
[361009475,1747200644868,-500.74484075,0.00010973,2]
[361009476,1747200644878,-500.0,0.00010973,2]
[361009477,1747200644889,-169.71787666,0.00010973,2]
[361009478,1747200644899,-505.71531887,0.00010973,2]
[361009479,1747200644911,-500.0,0.00010973,2]
[361009480,1747200644922,-500.0,0.00010973,2]
[361009481,1747200644932,-280.43518902,0.00010973,2]
[361009482,1747200644942,-500.2651642,0.00010973,2]
[361009483,1747200644952,-500.0,0.00010973,2]
[361009484,1747200644962,-500.0,0.00010973,2]
[361009485,1747200644977,-501.53942014,0.00010973,2]
[361009486,1747200644988,-500.0,0.00010973,2]
[361009487,1747200644998,-652.739,0.00010993,2]
[361009488,1747200645008,-367.43,0.00010993,2]
[361009489,1747200645018,-931.0,0.00010993,2]
[361009490,1747200645027,-222.461,0.00010993,2]
[361009491,1747200645036,-1305.0,0.00010993,2]
[361009492,1747200645046,-27724.33433009,0.00010994,2]
[361009493,1747200645055,-151.0,0.00010997,2]
[361009494,1747200645065,-957.313451,0.00010997,2]
[361009495,1747200645074,-957.313451,0.00010997,2]
[361009496,1747200645083,-151.0,0.00010997,2]
[361009497,1747200645092,-3720.0414953,0.00010998,2]
[361009498,1747200645101,-134893.7631989,0.00010998,2]
[361009499,1747200645111,-15293.4180759,0.00010998,2]
[361009500,1747200645120,-36059.8062489,0.00010998,2]
[361009501,1747200645129,-3348.271049,0.00010998,2]
[361009502,1747200645139,-300.0,0.00010999,2]
[361009503,1747200645149,-350.29384776,0.00010999,2]
[361009504,1747200645158,-400.0,0.00010999,2]
[361009505,1747200645167,-260.82035968,0.00010999,2]
[361009506,1747200645176,-34386.56,0.00010999,2]
[361009507,1747200645185,-500.0,0.00010999,2]
[361009508,1747200645195,-500.0,0.00010999,2]
[361009509,1747200645203,-500.0,0.00010999,2]
[361009510,1747200645212,-500.0,0.00010999,2]
[361009511,1747200645221,-500.0,0.00010999,2]
[361009512,1747200645231,-150.05,0.00010999,2]
[361009513,1747200645240,-300.0,0.00010999,2]
[361009514,1747200645249,-658.0,0.00010999,2]
[361009515,1747200645258,-1213734.20805004,0.00011,2]
[361009516,1747200645267,-527461.40009763,0.00011,2]
[361009520,1747200646732,-400.0,0.00010958,2]
[361009521,1747200646747,-915.35,0.00010958,2]